Workbook

Sheet 职业技能竞赛获奖（名次）选手激励预算表
A1: 2023-2024年职业技能竞赛获奖（名次）选手激励发放公示表
A2: 序号 | B2: 竞赛名称 | C2: 竞赛类型 | D2: 竞赛项目 | E2: 类型 | F2: 参赛选手姓名 | G2: 获奖名次 | H2: 所属单位（学校） | I2: 获奖选手归属地 | J2: 激励资金金额预算（万元）
A3: 1 | B3: 中华人民共和国第二届职业技能大赛 | C3: 国家一类 | D3: CAD机械设计（国赛项目） | E3: 个人 | F3: 王浩培 | G3: 铜牌 | H3: 江门市技师学院 | I3: 蓬江区 | J3: 10.0000
A4: 2 | B4: 广东省第三届“南粤家政”技能大赛总决赛 | C4: 省一类 | D4: 养老护理员 | E4: 个人 | F4: 余嘉琪 | G4: 一等奖 | H4: 江门市新会技师学院 | I4: 新会区 | J4: 10.0000
A5: 3 | B5: 广东省第三届“南粤家政”技能大赛总决赛 | C5: 省一类 | D5: 家政服务员 | E5: 个人 | F5: 廖金凤 | G5: 二等奖 | H5: 广东江门中医药职业学院 | I5: 蓬江区 | J5: 5.0000
A6: 4 | B6: 广东省第三届“南粤家政”技能大赛总决赛 | C6: 省一类 | D6: 家政服务员 | E6: 个人 | F6: 胡淑玲 | G6: 三等奖 | H6: 江门市蓬江区幸福四季家园养老中心 | I6: 蓬江区 | J6: 3.0000
A7: 5 | B7: 广东省第三届“南粤家政”技能大赛总决赛 | C7: 省一类 | D7: 育婴员 | E7: 个人 | F7: 严嘉丽 | G7: 三等奖 | H7: 江门东方爱婴早教中心 | I7: 新会区 | J7: 3.0000
A8: 6 | B8: 广东省第二届“南粤家政”技能大赛总决赛 | C8: 省一类 | D8: 家政服务员 | E8: 个人 | F8: 廖培莹 | G8: 一等奖 | H8: 广东江门中医药职业学院 | I8: 蓬江区 | J8: 10.0000
A9: 7 | B9: 广东省第二届“南粤家政”技能大赛总决赛 | C9: 省一类 | D9: 家政服务员 | E9: 个人 | F9: 谢淑娟 | G9: 二等奖 | H9: 广东江门中医药职业学院 | I9: 蓬江区 | J9: 5.0000
A10: 8 | B10: 广东省第二届“南粤家政”技能大赛总决赛 | C10: 省一类 | D10: 家政服务员 | E10: 个人 | F10: 古秀丹 | G10: 二等奖 | H10: 广东江门中医药职业学院 | I10: 蓬江区 | J10: 5.0000
A11: 9 | B11: 广东省第二届“南粤家政”技能大赛总决赛 | C11: 省一类 | D11: 健康照护师 | E11: 个人 | F11: 陈阳春 | G11: 一等奖 | H11: 广东江门中医药职业学院 | I11: 蓬江区 | J11: 10.0000
A12: 10 | B12: 广东省第二届“南粤家政”技能大赛总决赛 | C12: 省一类 | D12: 健康照护师 | E12: 个人 | F12: 吴硕园 | G12: 二等奖 | H12: 广东江门中医药职业学院 | I12: 蓬江区 | J12: 5.0000
A13: 11 | B13: 广东省第二届“南粤家政”技能大赛总决赛 | C13: 省一类 | D13: 健康照护师 | E13: 个人 | F13: 蔡晓艺 | G13: 三等奖 | H13: 广东江门中医药职业学院 | I13: 蓬江区 | J13: 3.0000
A14: 12 | B14: 广东省第二届“南粤家政”技能大赛总决赛 | C14: 省一类 | D14: 养老护理员 | E14: 个人 | F14: 徐美娟 | G14: 一等奖 | H14: 江门市蓬江幸福寿星安老之家 | I14: 蓬江区 | J14: 10.0000
A15: 13 | B15: 广东省第二届“南粤家政”技能大赛总决赛 | C15: 省一类 | D15: 养老护理员 | E15: 个人 | F15: 林小静 | G15: 二等奖 | H15: 江门市新会技师学院 | I15: 新会区 | J15: 5.0000
A16: 14 | B16: 广东省第二届“南粤家政”技能大赛总决赛 | C16: 省一类 | D16: 养老护理员 | E16: 个人 | F16: 刘倪浈 | G16: 二等奖 | H16: 广东江门中医药职业学院 | I16: 蓬江区 | J16: 5.0000
A17: 15 | B17: 广东省第二届“南粤家政”技能大赛总决赛 | C17: 省一类 | D17: 养老护理员 | E17: 个人 | F17: 徐厚禄 | G17: 三等奖 | H17: 江门市社会（儿童）福利院 | I17: 江海区 | J17: 3.0000
A18: 16 | B18: 广东省第二届“南粤家政”技能大赛总决赛 | C18: 省一类 | D18: 育婴员 | E18: 个人 | F18: 黄敏 | G18: 一等奖 | H18: 江门市妇女儿童活动中心 | I18: 蓬江区 | J18: 10.0000
A19: 17 | B19: 广东省第二届“南粤家政”技能大赛总决赛 | C19: 省一类 | D19: 育婴员 | E19: 个人 | F19: 李佩玲 | G19: 二等奖 | H19: 江门市妇女儿童活动中心 | I19: 蓬江区 | J19: 5.0000
A20: 18 | B20: 广东省第二届“南粤家政”技能大赛总决赛 | C20: 省一类 | D20: 育婴员 | E20: 个人 | F20: 黄妙欣 | G20: 二等奖 | H20: 江门市新会技师学院 | I20: 新会区 | J20: 5.0000
A21: 19 | B21: 第五届粤港澳大湾区“粤菜师傅”技能大赛 | C21: 省一类 | D21: 中式面点师(名厨组)（广府菜） | E21: 个人 | F21: 郑可燕 | G21: 一等奖 | H21: 江门市技师学院 | I21: 蓬江区 | J21: 10.0000
A22: 20 | B22: 第五届粤港澳大湾区“粤菜师傅”技能大赛 | C22: 省一类 | D22: 中式面点师(新秀组)（广府菜） | E22: 个人 | F22: 安敏 | G22: 二等奖 | H22: 江门市技师学院 | I22: 蓬江区 | J22: 5.0000
A23: 21 | B23: 广东省第三届职业技能大赛 | C23: 省一类 | D23: CAD 机械设计（国赛精选） | E23: 个人 | F23: 王浩培 | G23: 金牌（一等奖） | H23: 江门市技师学院 | I23: 蓬江区 | J23: 10.0000
A24: 22 | B24: 广东省第三届职业技能大赛 | C24: 省一类 | D24: 家具制作（世赛项目） | E24: 个人 | F24: 关得润 | G24: 银牌（二等奖） | H24: 江门市新会技师学院 | I24: 新会区 | J24: 5.0000
A25: 23 | B25: 广东省第三届职业技能大赛 | C25: 省一类 | D25: 健康照护（国赛精选） | E25: 个人 | F25: 汤钰如 | G25: 银牌（二等奖） | H25: 江门市新会技师学院 | I25: 新会区 | J25: 5.0000
A26: 24 | B26: 广东省第三届职业技能大赛 | C26: 省一类 | D26: 数控铣（国赛精选） | E26: 个人 | F26: 刘子豪 | G26: 银牌（二等奖） | H26: 江门市技师学院 | I26: 蓬江区 | J26: 5.0000
A27: 25 | B27: 广东省第三届职业技能大赛 | C27: 省一类 | D27: 汽车维修（国赛精选） | E27: 个人 | F27: 王杰 | G27: 银牌（二等奖） | H27: 江门市技师学院 | I27: 蓬江区 | J27: 5.0000
A28: 26 | B28: 广东省第三届职业技能大赛 | C28: 省一类 | D28: 电力系统运营与维护（国赛精选） | E28: 团队 | F28: 袁德权 | G28: 银牌（二等奖） | H28: 广东电网有限责任公司/江门供电局/新会供电局/会城配电运维供电所 | I28: 新会区 | J28: 2.5000
A29: 27 | B29: 广东省第三届职业技能大赛 | C29: 省一类 | D29: 电力系统运营与维护（国赛精选） | E29: 团队 | F29: 黎锡源 | G29: 银牌（二等奖） | H29: 江门明浩实业集团有限公司 | I29: 蓬江区 | J29: 2.5000
A30: 28 | B30: 广东省第三届职业技能大赛 | C30: 省一类 | D30: CAD 机械设计（世赛项目） | E30: 个人 | F30: 张炜杉 | G30: 银牌（二等奖） | H30: 江门市技师学院 | I30: 蓬江区 | J30: 5.0000
A31: 29 | B31: 广东省第三届职业技能大赛 | C31: 省一类 | D31: 大数据技术应用（新职业） | E31: 个人 | F31: 周伟强 | G31: 银牌（二等奖） | H31: 江门市技师学院 | I31: 蓬江区 | J31: 5.0000
A32: 30 | B32: 广东省第三届职业技能大赛 | C32: 省一类 | D32: 精细木工（世赛项目） | E32: 个人 | F32: 谭键泉 | G32: 铜牌（三等奖） | H32: 江门市新会技师学院 | I32: 新会区 | J32: 3.0000
A33: 31 | B33: 广东省第三届职业技能大赛 | C33: 省一类 | D33: 机器人焊接技术（国赛精选） | E33: 个人 | F33: 伍卓彬 | G33: 铜牌（三等奖） | H33: 江门市新会技师学院 | I33: 新会区 | J33: 3.0000
A34: 32 | B34: 广东省第三届职业技能大赛 | C34: 省一类 | D34: 电工（国赛精选） | E34: 个人 | F34: 张健锋 | G34: 铜牌（三等奖） | H34: 江门市技师学院 | I34: 蓬江区 | J34: 3.0000
A35: 33 | B35: 广东省第三届职业技能大赛 | C35: 省一类 | D35: 油漆与装饰（世赛项目） | E35: 个人 | F35: 邓雅婷 | G35: 铜牌（三等奖） | H35: 江门市技师学院 | I35: 蓬江区 | J35: 3.0000
A36: 34 | B36: 广东省第三届职业技能大赛 | C36: 省一类 | D36: 网站设计与开发（世赛项目） | E36: 个人 | F36: 陈广雄 | G36: 铜牌（三等奖） | H36: 江门市技师学院 | I36: 蓬江区 | J36: 3.0000
A37: 35 | B37: 2022年江门市第二届职业技能大赛“粤菜师傅”职业技能竞赛暨第五届粤港澳大湾区“粤菜师傅”技能大赛江门选拔赛 | C37: 市一类 | D37: 中式烹调师（名厨组） | E37: 个人 | F37: 吕世烈 | G37: 一等奖（第一名） | H37: 台山市君煌饮食有限公司 | I37: 台山市 | J37: 0.3000
A38: 36 | B38: 2022年江门市第二届职业技能大赛“粤菜师傅”职业技能竞赛暨第五届粤港澳大湾区“粤菜师傅”技能大赛江门选拔赛 | C38: 市一类 | D38: 中式烹调师（名厨组） | E38: 个人 | F38: 伍立更 | G38: 二等奖（第二名） | H38: 开平潭江半岛酒店有限公司 | I38: 开平市 | J38: 0.2000
A39: 37 | B39: 2022年江门市第二届职业技能大赛“粤菜师傅”职业技能竞赛暨第五届粤港澳大湾区“粤菜师傅”技能大赛江门选拔赛 | C39: 市一类 | D39: 中式烹调师（名厨组） | E39: 个人 | F39: 邓建东 | G39: 三等奖（第三名） | H39: 台山市技工学校 | I39: 台山市 | J39: 0.2000
A40: 38 | B40: 2022年江门市第二届职业技能大赛“粤菜师傅”职业技能竞赛暨第五届粤港澳大湾区“粤菜师傅”技能大赛江门选拔赛 | C40: 市一类 | D40: 中式烹调师（新秀组） | E40: 个人 | F40: 黄日桃 | G40: 一等奖（第一名） | H40: 江门市技师学院 | I40: 蓬江区 | J40: 0.3000
A41: 39 | B41: 2022年江门市第二届职业技能大赛“粤菜师傅”职业技能竞赛暨第五届粤港澳大湾区“粤菜师傅”技能大赛江门选拔赛 | C41: 市一类 | D41: 中式烹调师（新秀组） | E41: 个人 | F41: 张晓东 | G41: 三等奖（第三名） | H41: 广东省厨艺技工学校 | I41: 台山市 | J41: 0.2000
A42: 40 | B42: 2022年江门市第二届职业技能大赛“粤菜师傅”职业技能竞赛暨第五届粤港澳大湾区“粤菜师傅”技能大赛江门选拔赛 | C42: 市一类 | D42: 中式面点师（名厨组） | E42: 个人 | F42: 郑可燕 | G42: 一等奖（第一名） | H42: 江门市技师学院 | I42: 蓬江区 | J42: 0.3000
A43: 41 | B43: 2022年江门市第二届职业技能大赛“粤菜师傅”职业技能竞赛暨第五届粤港澳大湾区“粤菜师傅”技能大赛江门选拔赛 | C43: 市一类 | D43: 中式面点师（名厨组） | E43: 个人 | F43: 吴博年 | G43: 二等奖（第二名） | H43: 江门市技师学院 | I43: 蓬江区 | J43: 0.2000
A44: 42 | B44: 2022年江门市第二届职业技能大赛“粤菜师傅”职业技能竞赛暨第五届粤港澳大湾区“粤菜师傅”技能大赛江门选拔赛 | C44: 市一类 | D44: 中式面点师（名厨组） | E44: 个人 | F44: 马从容 | G44: 三等奖（第三名） | H44: 江门市技师学院 | I44: 蓬江区 | J44: 0.2000
A45: 43 | B45: 2022年江门市第二届职业技能大赛“粤菜师傅”职业技能竞赛暨第五届粤港澳大湾区“粤菜师傅”技能大赛江门选拔赛 | C45: 市一类 | D45: 中式面点师（新秀组） | E45: 个人 | F45: 安敏 | G45: 一等奖（第一名） | H45: 江门市技师学院 | I45: 蓬江区 | J45: 0.3000
A46: 44 | B46: 2022年江门市第二届职业技能大赛“粤菜师傅”职业技能竞赛暨第五届粤港澳大湾区“粤菜师傅”技能大赛江门选拔赛 | C46: 市一类 | D46: 中式面点师（新秀组） | E46: 个人 | F46: 黄海锋 | G46: 二等奖（第二名） | H46: 江门市技师学院 | I46: 蓬江区 | J46: 0.2000
A47: 45 | B47: 2022年江门市第二届职业技能大赛“粤菜师傅”职业技能竞赛暨第五届粤港澳大湾区“粤菜师傅”技能大赛江门选拔赛 | C47: 市一类 | D47: 中式面点师（新秀组） | E47: 个人 | F47: 陈珉旭 | G47: 三等奖（第三名） | H47: 江门市新会技师学院 | I47: 新会区 | J47: 0.2000
A48: 46 | B48: 2022年江门市第二届职业技能大赛 | C48: 市一类 | D48: CAD机械设计 | E48: 个人 | F48: 陈柏林 | G48: 一等奖（第一名） | H48: 江门市技师学院 | I48: 蓬江区 | J48: 0.3000
A49: 47 | B49: 2022年江门市第二届职业技能大赛 | C49: 市一类 | D49: CAD机械设计 | E49: 个人 | F49: 韦石武 | G49: 二等奖（第二名） | H49: 江门市技师学院 | I49: 蓬江区 | J49: 0.2000
A50: 48 | B50: 2022年江门市第二届职业技能大赛 | C50: 市一类 | D50: CAD机械设计 | E50: 个人 | F50: 谭俊轩 | G50: 二等奖（第三名） | H50: 江门市技师学院 | I50: 蓬江区 | J50: 0.2000
A51: 49 | B51: 2022年江门市第二届职业技能大赛 | C51: 市一类 | D51: CAD机械设计 | E51: 个人 | F51: 黄耀达 | G51: 三等奖（第四名） | H51: 江门市技师学院 | I51: 蓬江区 | J51: 0.1000
A52: 50 | B52: 2022年江门市第二届职业技能大赛 | C52: 市一类 | D52: CAD机械设计 | E52: 个人 | F52: 谭世源 | G52: 三等奖（第五名） | H52: 江门市广润轨道交通实业有限公司 | I52: 新会区 | J52: 0.1000
A53: 51 | B53: 2022年江门市第二届职业技能大赛 | C53: 市一类 | D53: CAD机械设计 | E53: 个人 | F53: 易坚荣 | G53: 三等奖（第六名） | H53: 鹤山市职业技术学校 | I53: 鹤山市 | J53: 0.1000
A54: 52 | B54: 2022年江门市第二届职业技能大赛 | C54: 市一类 | D54: “农村电商” | E54: 个人 | F54: 黄羽淇 | G54: 一等奖（第一名） | H54: 江门市技师学院 | I54: 蓬江区 | J54: 0.3000
A55: 53 | B55: 2022年江门市第二届职业技能大赛 | C55: 市一类 | D55: “农村电商” | E55: 个人 | F55: 黄嫣君 | G55: 二等奖（第二名） | H55: 江门市技师学院 | I55: 蓬江区 | J55: 0.2000
A56: 54 | B56: 2022年江门市第二届职业技能大赛 | C56: 市一类 | D56: “农村电商” | E56: 个人 | F56: 邱若微 | G56: 二等奖（第三名） | H56: 江门市新会技师学院 | I56: 新会区 | J56: 0.2000
A57: 55 | B57: 2022年江门市第二届职业技能大赛 | C57: 市一类 | D57: “农村电商” | E57: 个人 | F57: 苏颖 | G57: 三等奖（第四名） | H57: 江门市新会技师学院 | I57: 新会区 | J57: 0.1000
A58: 56 | B58: 2022年江门市第二届职业技能大赛 | C58: 市一类 | D58: “农村电商” | E58: 个人 | F58: 陈智慧 | G58: 三等奖（第五名） | H58: 江门市技师学院 | I58: 蓬江区 | J58: 0.1000
A59: 57 | B59: 2022年江门市第二届职业技能大赛 | C59: 市一类 | D59: “农村电商” | E59: 个人 | F59: 龙张怡 | G59: 三等奖（第六名） | H59: 江门市新会技师学院 | I59: 新会区 | J59: 0.1000
A60: 58 | B60: 2022年江门市第二届职业技能大赛 | C60: 市一类 | D60: 汽车技术 | E60: 个人 | F60: 谢攀嵘 | G60: 一等奖（第一名） | H60: 江门市技师学院 | I60: 蓬江区 | J60: 0.3000
A61: 59 | B61: 2022年江门市第二届职业技能大赛 | C61: 市一类 | D61: 汽车技术 | E61: 个人 | F61: 司徒宝杨 | G61: 二等奖（第三名） | H61: 台山市技工学校 | I61: 台山市 | J61: 0.2000
A62: 60 | B62: 2022年江门市第二届职业技能大赛 | C62: 市一类 | D62: 汽车技术 | E62: 个人 | F62: 叶婷 | G62: 三等奖（第四名） | H62: 江门市技师学院 | I62: 蓬江区 | J62: 0.1000
A63: 61 | B63: 2022年江门市第二届职业技能大赛 | C63: 市一类 | D63: 汽车技术 | E63: 个人 | F63: 蒋余 | G63: 三等奖（第五名） | H63: 江门市技师学院 | I63: 蓬江区 | J63: 0.1000
A64: 62 | B64: 2022年江门市第二届职业技能大赛 | C64: 市一类 | D64: 汽车技术 | E64: 个人 | F64: 梁金鹏 | G64: 三等奖（第六名） | H64: 江门市技师学院 | I64: 蓬江区 | J64: 0.1000
A65: 63 | B65: 2022年江门市第二届职业技能大赛 | C65: 市一类 | D65: 家具制作 | E65: 个人 | F65: 关得润 | G65: 一等奖（第一名） | H65: 江门市新会技师学院 | I65: 新会区 | J65: 0.3000
A66: 64 | B66: 2022年江门市第二届职业技能大赛 | C66: 市一类 | D66: 家具制作 | E66: 个人 | F66: 许景波 | G66: 二等奖（第三名） | H66: 江门六堡家具有限公司 | I66: 新会区 | J66: 0.2000
A67: 65 | B67: 2022年江门市第二届职业技能大赛 | C67: 市一类 | D67: 家具制作 | E67: 个人 | F67: 刘飞 | G67: 三等奖（第四名） | H67: 江门市良木匠造家具厂 | I67: 新会区 | J67: 0.1000
A68: 66 | B68: 2022年江门市第二届职业技能大赛 | C68: 市一类 | D68: 家具制作 | E68: 个人 | F68: 蓝亿君 | G68: 三等奖（第五名） | H68: 江门市新会技师学院 | I68: 新会区 | J68: 0.1000
A69: 67 | B69: 2022年江门市第二届职业技能大赛 | C69: 市一类 | D69: 精细木工 | E69: 个人 | F69: 杨冲 | G69: 一等奖（第一名） | H69: 台山市大江镇星创红木家具厂 | I69: 台山市 | J69: 0.3000
A70: 68 | B70: 2022年江门市第二届职业技能大赛 | C70: 市一类 | D70: 精细木工 | E70: 个人 | F70: 甄梓晖 | G70: 二等奖（第二名） | H70: 广东省台山市技工学校 | I70: 台山市 | J70: 0.2000
A71: 69 | B71: 2022年江门市第二届职业技能大赛 | C71: 市一类 | D71: 精细木工 | E71: 个人 | F71: 区健华 | G71: 二等奖（第三名） | H71: 广东省台山市技工学校 | I71: 台山市 | J71: 0.2000
A72: 70 | B72: 2022年江门市第二届职业技能大赛 | C72: 市一类 | D72: 精细木工 | E72: 个人 | F72: 梁嘉俊 | G72: 三等奖（第四名） | H72: 江门市新会技师学院 | I72: 新会区 | J72: 0.1000
A73: 71 | B73: 2022年江门市第二届职业技能大赛 | C73: 市一类 | D73: 精细木工 | E73: 个人 | F73: 伍浩源 | G73: 三等奖（第五名） | H73: 广东省台山市技工学校 | I73: 台山市 | J73: 0.1000
A74: 72 | B74: 2022年江门市第二届职业技能大赛 | C74: 市一类 | D74: 精细木工 | E74: 个人 | F74: 施学根 | G74: 三等奖（第六名） | H74: 台山市似锦传承红木家具公司 | I74: 台山市 | J74: 0.1000
A75: 73 | B75: 2022年江门市第二届职业技能大赛 | C75: 市一类 | D75: 电梯安装维修工 | E75: 团队 | F75: 许盛威 | G75: 二等奖（第二名） | H75: 开平市华发电梯工程发展有限公司 | I75: 开平市 | J75: 0.1000
A76: 74 | B76: 2022年江门市第二届职业技能大赛 | C76: 市一类 | D76: 电梯安装维修工 | E76: 团队 | F76: 谢永祥 | G76: 二等奖（第二名） | H76: 开平市华发电梯工程发展有限公司 | I76: 开平市 | J76: 0.1000
A77: 75 | B77: 2022年江门市第二届职业技能大赛 | C77: 市一类 | D77: 电梯安装维修工 | E77: 团队 | F77: 朱家胜 | G77: 二等奖（第三名） | H77: 江门市怡润机电设备工程有限公司 | I77: 蓬江区 | J77: 0.1000
A78: 76 | B78: 2022年江门市第二届职业技能大赛 | C78: 市一类 | D78: 电梯安装维修工 | E78: 团队 | F78: 邓灿伟 | G78: 二等奖（第三名） | H78: 江门市怡润机电设备工程有限公司 | I78: 蓬江区 | J78: 0.1000
A79: 77 | B79: 2022年江门市第二届职业技能大赛 | C79: 市一类 | D79: 电梯安装维修工 | E79: 团队 | F79: 梁永业 | G79: 三等奖（第四名） | H79: 江门市嘉菱电梯有限公司 | I79: 江海区 | J79: 0.0500
A80: 78 | B80: 2022年江门市第二届职业技能大赛 | C80: 市一类 | D80: 电梯安装维修工 | E80: 团队 | F80: 黎志强 | G80: 三等奖（第四名） | H80: 江门市嘉菱电梯有限公司 | I80: 江海区 | J80: 0.0500
A81: 79 | B81: 2022年江门市第二届职业技能大赛 | C81: 市一类 | D81: 电梯安装维修工 | E81: 团队 | F81: 叶树源 | G81: 三等奖（第五名） | H81: 广东宏泽电梯有限公司 | I81: 开平市 | J81: 0.0500
A82: 80 | B82: 2022年江门市第二届职业技能大赛 | C82: 市一类 | D82: 电梯安装维修工 | E82: 团队 | F82: 熊剑锋 | G82: 三等奖（第五名） | H82: 广东宏泽电梯有限公司 | I82: 开平市 | J82: 0.0500
A83: 81 | B83: 2022年江门市第二届职业技能大赛 | C83: 市一类 | D83: 电梯安装维修工 | E83: 团队 | F83: 何润锦 | G83: 三等奖（第六名） | H83: 广东省台山市技工学校 | I83: 台山市 | J83: 0.0500
A84: 82 | B84: 2022年江门市第二届职业技能大赛 | C84: 市一类 | D84: 叉车 | E84: 个人 | F84: 叶大伟 | G84: 一等奖（第一名） | H84: 亚太森博（广东）纸业有限公司 | I84: 新会区 | J84: 0.3000
A85: 83 | B85: 2022年江门市第二届职业技能大赛 | C85: 市一类 | D85: 叉车 | E85: 个人 | F85: 陈健 | G85: 二等奖（第二名） | H85: 广东生力华柳工机械销售服务有限公司 | I85: 鹤山市 | J85: 0.2000
A86: 84 | B86: 2022年江门市第二届职业技能大赛 | C86: 市一类 | D86: 叉车 | E86: 个人 | F86: 韦永曹 | G86: 二等奖（第三名） | H86: 广东聚盈化工有限公司 | I86: 鹤山市 | J86: 0.2000
A87: 85 | B87: 2022年江门市第二届职业技能大赛 | C87: 市一类 | D87: 叉车 | E87: 个人 | F87: 雷华胜 | G87: 三等奖（第四名） | H87: 广东铜业有限公司 | I87: 台山市 | J87: 0.1000
A88: 86 | B88: 2022年江门市第二届职业技能大赛 | C88: 市一类 | D88: 叉车 | E88: 个人 | F88: 张杰辉 | G88: 三等奖（第五名） | H88: 恩平市沙湖镇恒飞工程机械经销部 | I88: 恩平市 | J88: 0.1000
A89: 87 | B89: 2022年江门市第二届职业技能大赛 | C89: 市一类 | D89: 叉车 | E89: 个人 | F89: 张坤健 | G89: 三等奖（第六名） | H89: 广东万佳泓不锈钢有限公司 | I89: 台山市 | J89: 0.1000
A90: 88 | B90: 2022年江门市第二届职业技能大赛 | C90: 市一类 | D90: 美容师 | E90: 个人 | F90: 陈月瑛 | G90: 一等奖（第一名） | H90: 江门市新会成美职业培训学校 | I90: 新会区 | J90: 0.3000
A91: 89 | B91: 2022年江门市第二届职业技能大赛 | C91: 市一类 | D91: 美容师 | E91: 个人 | F91: 陈清清 | G91: 二等奖（第三名） | H91: 个人 | I91: 蓬江区 | J91: 0.2000
A92: 90 | B92: 2022年江门市第二届职业技能大赛 | C92: 市一类 | D92: 美容师 | E92: 个人 | F92: 徐凤玲 | G92: 三等奖（第四名） | H92: 江门市宝娜美容院 | I92: 蓬江区 | J92: 0.1000
A93: 91 | B93: 2022年江门市第二届职业技能大赛 | C93: 市一类 | D93: 茶艺师 | E93: 个人 | F93: 严晓蕾 | G93: 一等奖（第一名） | H93: 江门市第一中学 | I93: 江海区 | J93: 0.3000
A94: 92 | B94: 2022年江门市第二届职业技能大赛 | C94: 市一类 | D94: 茶艺师 | E94: 个人 | F94: 黄翠琦 | G94: 二等奖（第二名） | H94: 蓬江区金鑫号茶业商行 | I94: 蓬江区 | J94: 0.2000
A95: 93 | B95: 2022年江门市第二届职业技能大赛 | C95: 市一类 | D95: 茶艺师 | E95: 个人 | F95: 陈敏倩 | G95: 二等奖（第三名） | H95: 江门职业技术学院 | I95: 蓬江区 | J95: 0.2000
A96: 94 | B96: 2022年江门市第二届职业技能大赛 | C96: 市一类 | D96: 茶艺师 | E96: 个人 | F96: 侯小丹 | G96: 三等奖（第四名） | H96: 江门市优博文化传播有限公司 | I96: 蓬江区 | J96: 0.1000
A97: 95 | B97: 2022年江门市第二届职业技能大赛 | C97: 市一类 | D97: 茶艺师 | E97: 个人 | F97: 陈婷曼 | G97: 三等奖（第五名） | H97: 江门市蓬江区点水艺术培训中心 | I97: 蓬江区 | J97: 0.1000
A98: 96 | B98: 2022年江门市第二届职业技能大赛 | C98: 市一类 | D98: 茶艺师 | E98: 个人 | F98: 郑芷蕾 | G98: 三等奖（第六名） | H98: 江门职业技术学院 | I98: 蓬江区 | J98: 0.1000
A99: 97 | B99: 2022年江门市第二届职业技能大赛 | C99: 市一类 | D99: 艺术砌砖 | E99: 团队 | F99: 罗德刚 | G99: 一等奖（第一名） | H99: 广东中禧建设工程有限公司 | I99: 新会区 | J99: 0.1000
A100: 98 | B100: 2022年江门市第二届职业技能大赛 | C100: 市一类 | D100: 艺术砌砖 | E100: 团队 | F100: 彭小亮 | G100: 一等奖（第一名） | H100: 广东中禧建设工程有限公司 | I100: 新会区 | J100: 0.1000
A101: 99 | B101: 2022年江门市第二届职业技能大赛 | C101: 市一类 | D101: 艺术砌砖 | E101: 团队 | F101: 司徒永健 | G101: 一等奖（第一名） | H101: 广东中禧建设工程有限公司 | I101: 新会区 | J101: 0.1000
A102: 100 | B102: 2022年江门市第二届职业技能大赛 | C102: 市一类 | D102: 艺术砌砖 | E102: 团队 | F102: 关平德 | G102: 二等奖（第二名） | H102: 开平市嘉瑞建筑工程有限公司-2队 | I102: 开平市 | J102: 0.0666
A103: 101 | B103: 2022年江门市第二届职业技能大赛 | C103: 市一类 | D103: 艺术砌砖 | E103: 团队 | F103: 温秀霞 | G103: 二等奖（第二名） | H103: 开平市嘉瑞建筑工程有限公司-2队 | I103: 开平市 | J103: 0.0666
A104: 102 | B104: 2022年江门市第二届职业技能大赛 | C104: 市一类 | D104: 艺术砌砖 | E104: 团队 | F104: 司徒新智 | G104: 二等奖（第二名） | H104: 开平市嘉瑞建筑工程有限公司-2队 | I104: 开平市 | J104: 0.0666
A105: 103 | B105: 2022年江门市第二届职业技能大赛 | C105: 市一类 | D105: 艺术砌砖 | E105: 团队 | F105: 易庆波 | G105: 二等奖（第三名） | H105: 开平市宏城建筑工程有限公司-1队 | I105: 开平市 | J105: 0.0666
A106: 104 | B106: 2022年江门市第二届职业技能大赛 | C106: 市一类 | D106: 艺术砌砖 | E106: 团队 | F106: 霍人伟 | G106: 二等奖（第三名） | H106: 开平市宏城建筑工程有限公司-1队 | I106: 开平市 | J106: 0.0666
A107: 105 | B107: 2022年江门市第二届职业技能大赛 | C107: 市一类 | D107: 艺术砌砖 | E107: 团队 | F107: 周振宁 | G107: 二等奖（第三名） | H107: 开平市宏城建筑工程有限公司-1队 | I107: 开平市 | J107: 0.0666
A108: 106 | B108: 2022年江门市第二届职业技能大赛 | C108: 市一类 | D108: 艺术砌砖 | E108: 团队 | F108: 司徒耀强 | G108: 三等奖（第四名） | H108: 广东中妍建设有限公司 | I108: 开平市 | J108: 0.0333
A109: 107 | B109: 2022年江门市第二届职业技能大赛 | C109: 市一类 | D109: 艺术砌砖 | E109: 团队 | F109: 李可鹏 | G109: 三等奖（第五名） | H109: 广东华通泰业建设工程有限公司 | I109: 江海区 | J109: 0.0333
A110: 108 | B110: 2022年江门市第二届职业技能大赛 | C110: 市一类 | D110: 艺术砌砖 | E110: 团队 | F110: 李可安 | G110: 三等奖（第五名） | H110: 广东华通泰业建设工程有限公司 | I110: 江海区 | J110: 0.0333
A111: 109 | B111: 2022年江门市第二届职业技能大赛 | C111: 市一类 | D111: 艺术砌砖 | E111: 团队 | F111: 雷湖川 | G111: 三等奖（第六名） | H111: 开平市宏城建筑工程有限公司-2队 | I111: 开平市 | J111: 0.0333
A112: 110 | B112: 2022年江门市第二届职业技能大赛 | C112: 市一类 | D112: 艺术砌砖 | E112: 团队 | F112: 蓝金毅 | G112: 三等奖（第六名） | H112: 开平市宏城建筑工程有限公司-2队 | I112: 开平市 | J112: 0.0333
A113: 111 | B113: 2022年江门市第二届职业技能大赛 | C113: 市一类 | D113: 艺术砌砖 | E113: 团队 | F113: 关遇胜 | G113: 三等奖（第六名） | H113: 开平市宏城建筑工程有限公司-2队 | I113: 开平市 | J113: 0.0333
A114: 112 | B114: 2022年江门市第二届职业技能大赛 | C114: 市一类 | D114: 咖啡师 | E114: 个人 | F114: 陆浩彬 | G114: 一等奖（第一名） | H114: 邦德利 | I114: 蓬江区 | J114: 0.3000
A115: 113 | B115: 2022年江门市第二届职业技能大赛 | C115: 市一类 | D115: 咖啡师 | E115: 个人 | F115: 陈欣健 | G115: 二等奖（第二名） | H115: 咖啡爱好者 | I115: 蓬江区 | J115: 0.2000
A116: 114 | B116: 2022年江门市第二届职业技能大赛 | C116: 市一类 | D116: 咖啡师 | E116: 个人 | F116: 冯耀斌 | G116: 三等奖（第三名） | H116: Firs&Last Cafe | I116: 蓬江区 | J116: 0.2000
A117: 115 | B117: 2022年江门市第二届职业技能大赛 | C117: 市一类 | D117: 美发师 | E117: 个人 | F117: 邓礼光 | G117: 一等奖（第一名） | H117: 江门市开平市三埠理发店 | I117: 开平市 | J117: 0.3000
A118: 116 | B118: 2022年江门市第二届职业技能大赛 | C118: 市一类 | D118: 美发师 | E118: 个人 | F118: 熊志辉 | G118: 二等奖（第二名） | H118: 江门市金梦莎职业培训学校 | I118: 蓬江区 | J118: 0.2000
A119: 117 | B119: 2022年江门市第二届职业技能大赛 | C119: 市一类 | D119: 美发师 | E119: 个人 | F119: 郑立玲 | G119: 二等奖（第三名） | H119: 江门市艺剪美发店 | I119: 新会区 | J119: 0.2000
A120: 118 | B120: 2022年江门市第二届职业技能大赛 | C120: 市一类 | D120: 美发师 | E120: 个人 | F120: 李诗玲 | G120: 三等奖（第四名） | H120: 江门市诗艺美发店 | I120: 新会区 | J120: 0.1000
A121: 119 | B121: 2022年江门市第二届职业技能大赛 | C121: 市一类 | D121: 美发师 | E121: 个人 | F121: 张婷婷 | G121: 三等奖（第五名） | H121: 江门市婷婷美发店 | I121: 蓬江区 | J121: 0.1000
A122: 120 | B122: 2022年江门市第二届职业技能大赛 | C122: 市一类 | D122: 美发师 | E122: 个人 | F122: 李翠玲 | G122: 三等奖（第六名） | H122: 江门市业高发艺店 | I122: 蓬江区 | J122: 0.1000
A123: 121 | B123: 广东省第三届“南粤家政”技能大赛江门选拔赛 | C123: 市一类 | D123: 育婴员 | E123: 个人 | F123: 陈家早 | G123: 一等奖（第一名） | H123: 江门市新会技师学院 | I123: 新会区 | J123: 0.3000
A124: 122 | B124: 广东省第三届“南粤家政”技能大赛江门选拔赛 | C124: 市一类 | D124: 育婴员 | E124: 个人 | F124: 钟雅琳 | G124: 二等奖（第二名） | H124: 江门市新会技师学院 | I124: 新会区 | J124: 0.2000
A125: 123 | B125: 广东省第三届“南粤家政”技能大赛江门选拔赛 | C125: 市一类 | D125: 育婴员 | E125: 个人 | F125: 黎诺汶 | G125: 二等奖（第三名） | H125: 广东江门幼儿师范高等专科学校 | I125: 江海区 | J125: 0.2000
A126: 124 | B126: 广东省第三届“南粤家政”技能大赛江门选拔赛 | C126: 市一类 | D126: 育婴员 | E126: 个人 | F126: 罗盼 | G126: 三等奖（第四名） | H126: 江门市新会技师学院 | I126: 新会区 | J126: 0.1000
A127: 125 | B127: 广东省第三届“南粤家政”技能大赛江门选拔赛 | C127: 市一类 | D127: 育婴员 | E127: 个人 | F127: 严嘉丽 | G127: 三等奖（第五名） | H127: 江门市妇女就业服务中心 | I127: 蓬江区 | J127: 0.1000
A128: 126 | B128: 广东省第三届“南粤家政”技能大赛江门选拔赛 | C128: 市一类 | D128: 育婴员 | E128: 个人 | F128: 邓海丽 | G128: 三等奖（第六名） | H128: 江门市妇女就业服务中心 | I128: 蓬江区 | J128: 0.1000
A129: 127 | B129: 广东省第三届“南粤家政”技能大赛江门选拔赛 | C129: 市一类 | D129: 养老护理员 | E129: 个人 | F129: 谭春霞 | G129: 一等奖（第一名） | H129: 江门市新会技师学院 | I129: 新会区 | J129: 0.3000
A130: 128 | B130: 广东省第三届“南粤家政”技能大赛江门选拔赛 | C130: 市一类 | D130: 养老护理员 | E130: 个人 | F130: 李静怡 | G130: 二等奖（第二名） | H130: 江门市新会技师学院 | I130: 新会区 | J130: 0.2000
A131: 129 | B131: 广东省第三届“南粤家政”技能大赛江门选拔赛 | C131: 市一类 | D131: 养老护理员 | E131: 个人 | F131: 费梦婷 | G131: 二等奖（第三名） | H131: 江门市新会技师学院 | I131: 新会区 | J131: 0.2000
A132: 130 | B132: 广东省第三届“南粤家政”技能大赛江门选拔赛 | C132: 市一类 | D132: 养老护理员 | E132: 个人 | F132: 叶碧君 | G132: 三等奖（第四名） | H132: 江门蓬江区幸福四季家园养老中心 | I132: 蓬江区 | J132: 0.1000
A133: 131 | B133: 广东省第三届“南粤家政”技能大赛江门选拔赛 | C133: 市一类 | D133: 养老护理员 | E133: 个人 | F133: 李芷晴 | G133: 三等奖（第五名） | H133: 江门市新会技师学院 | I133: 新会区 | J133: 0.1000
A134: 132 | B134: 广东省第三届“南粤家政”技能大赛江门选拔赛 | C134: 市一类 | D134: 养老护理员 | E134: 个人 | F134: 李紫嫣 | G134: 三等奖（第六名） | H134: 江门市新会技师学院 | I134: 新会区 | J134: 0.1000
A135: 133 | B135: 广东省第三届“南粤家政”技能大赛江门选拔赛 | C135: 市一类 | D135: 健康照护师 | E135: 个人 | F135: 彭妍 | G135: 一等奖（第一名） | H135: 广东江门中医药职业学院 | I135: 蓬江区 | J135: 0.3000
A136: 134 | B136: 广东省第三届“南粤家政”技能大赛江门选拔赛 | C136: 市一类 | D136: 健康照护师 | E136: 个人 | F136: 潘杨烨 | G136: 二等奖（第二名） | H136: 广东江门中医药职业学院 | I136: 蓬江区 | J136: 0.2000
A137: 135 | B137: 广东省第三届“南粤家政”技能大赛江门选拔赛 | C137: 市一类 | D137: 健康照护师 | E137: 个人 | F137: 徐厚禄 | G137: 二等奖（第三名） | H137: 江门市社会（儿童）福利院 | I137: 江海区 | J137: 0.2000
A138: 136 | B138: 广东省第三届“南粤家政”技能大赛江门选拔赛 | C138: 市一类 | D138: 健康照护师 | E138: 个人 | F138: 莫晓桐 | G138: 三等奖（第四名） | H138: 广东江门中医药职业学院 | I138: 蓬江区 | J138: 0.1000
A139: 137 | B139: 广东省第三届“南粤家政”技能大赛江门选拔赛 | C139: 市一类 | D139: 健康照护师 | E139: 个人 | F139: 丁烁 | G139: 三等奖（第五名） | H139: 广东江门中医药职业学院 | I139: 蓬江区 | J139: 0.1000
A140: 138 | B140: 广东省第三届“南粤家政”技能大赛江门选拔赛 | C140: 市一类 | D140: 健康照护师 | E140: 个人 | F140: 梁水姐 | G140: 三等奖（第六名） | H140: 广东江门中医药职业学院 | I140: 蓬江区 | J140: 0.1000
A141: 139 | B141: 广东省第三届“南粤家政”技能大赛江门选拔赛 | C141: 市一类 | D141: 家政服务员 | E141: 个人 | F141: 廖金凤 | G141: 一等奖（第一名） | H141: 广东江门中医药职业学院 | I141: 蓬江区 | J141: 0.3000
A142: 140 | B142: 广东省第三届“南粤家政”技能大赛江门选拔赛 | C142: 市一类 | D142: 家政服务员 | E142: 个人 | F142: 刘芝莲 | G142: 二等奖（第二名） | H142: 广东江门中医药职业学院 | I142: 蓬江区 | J142: 0.2000
A143: 141 | B143: 广东省第三届“南粤家政”技能大赛江门选拔赛 | C143: 市一类 | D143: 家政服务员 | E143: 个人 | F143: 张晓妍 | G143: 三等奖（第三名） | H143: 广东江门中医药职业学院 | I143: 蓬江区 | J143: 0.2000
A144: 142 | B144: 江门市第三届职业技能大赛 | C144: 市一类 | D144: “农村电商” | E144: 个人 | F144: 唐晓婷 | G144: 一等奖（第一名） | H144: 江门市技师学院 | I144: 蓬江区 | J144: 0.3000
A145: 143 | B145: 江门市第三届职业技能大赛 | C145: 市一类 | D145: “农村电商” | E145: 个人 | F145: 张倩文 | G145: 二等奖（第二名） | H145: 江门市职业技术学院 | I145: 蓬江区 | J145: 0.2000
A146: 144 | B146: 江门市第三届职业技能大赛 | C146: 市一类 | D146: “农村电商” | E146: 个人 | F146: 黄嫣君 | G146: 二等奖（第三名） | H146: 江门市技师学院 | I146: 蓬江区 | J146: 0.2000
A147: 145 | B147: 江门市第三届职业技能大赛 | C147: 市一类 | D147: “农村电商” | E147: 个人 | F147: 叶蔓莹 | G147: 三等奖（第四名） | H147: 江门市技师学院 | I147: 蓬江区 | J147: 0.1000
A148: 146 | B148: 江门市第三届职业技能大赛 | C148: 市一类 | D148: “农村电商” | E148: 个人 | F148: 林丽芳 | G148: 三等奖（第五名） | H148: 江门市技师学院 | I148: 蓬江区 | J148: 0.1000
A149: 147 | B149: 江门市第三届职业技能大赛 | C149: 市一类 | D149: “农村电商” | E149: 个人 | F149: 黄羽淇 | G149: 三等奖（第六名） | H149: 江门市技师学院 | I149: 蓬江区 | J149: 0.1000
A150: 148 | B150: 江门市第三届职业技能大赛 | C150: 市一类 | D150: 平面设计技术 | E150: 个人 | F150: 马健翔 | G150: 一等奖（第一名） | H150: 江门市技师学院 | I150: 蓬江区 | J150: 0.3000
A151: 149 | B151: 江门市第三届职业技能大赛 | C151: 市一类 | D151: 平面设计技术 | E151: 个人 | F151: 冯嘉汉 | G151: 二等奖（第二名） | H151: 江门市技师学院 | I151: 蓬江区 | J151: 0.2000
A152: 150 | B152: 江门市第三届职业技能大赛 | C152: 市一类 | D152: 平面设计技术 | E152: 个人 | F152: 关栩峰 | G152: 二等奖（第三名） | H152: 江门市技师学院 | I152: 蓬江区 | J152: 0.2000
A153: 151 | B153: 江门市第三届职业技能大赛 | C153: 市一类 | D153: 平面设计技术 | E153: 个人 | F153: 钟浩滨 | G153: 三等奖（第四名） | H153: 江门市技师学院 | I153: 蓬江区 | J153: 0.1000
A154: 152 | B154: 江门市第三届职业技能大赛 | C154: 市一类 | D154: 平面设计技术 | E154: 个人 | F154: 陈文俊 | G154: 三等奖（第五名） | H154: 江门市从伈文化传播有限公司 | I154: 蓬江区 | J154: 0.1000
A155: 153 | B155: 江门市第三届职业技能大赛 | C155: 市一类 | D155: 平面设计技术 | E155: 个人 | F155: 梁健聪 | G155: 三等奖（第六名） | H155: 江门市天联文化传播有限公司 | I155: 蓬江区 | J155: 0.1000
A156: 154 | B156: 2022年广东省第二届“南粤家政”技能大赛江门市选拔赛 | C156: 市一类 | D156: 育婴员 | E156: 个人 | F156: 李佩玲 | G156: 一等奖（第一名） | H156: 江门市妇女儿童活动中心 | I156: 蓬江区 | J156: 0.3000
A157: 155 | B157: 2022年广东省第二届“南粤家政”技能大赛江门市选拔赛 | C157: 市一类 | D157: 育婴员 | E157: 个人 | F157: 梁女妹 | G157: 二等奖（第三名） | H157: 江门市妇女儿童活动中心 | I157: 蓬江区 | J157: 0.2000
A158: 156 | B158: 2022年广东省第二届“南粤家政”技能大赛江门市选拔赛 | C158: 市一类 | D158: 育婴员 | E158: 个人 | F158: 黄敏 | G158: 三等奖（第四名） | H158: 江门市妇女儿童活动中心 | I158: 蓬江区 | J158: 0.1000
A159: 157 | B159: 2022年广东省第二届“南粤家政”技能大赛江门市选拔赛 | C159: 市一类 | D159: 育婴员 | E159: 个人 | F159: 赵素银 | G159: 三等奖（第五名） | H159: 江门市妇女儿童活动中心 | I159: 蓬江区 | J159: 0.1000
A160: 158 | B160: 2022年广东省第二届“南粤家政”技能大赛江门市选拔赛 | C160: 市一类 | D160: 育婴员 | E160: 个人 | F160: 李诗琴 | G160: 三等奖（第六名） | H160: 江门市妇女儿童活动中心 | I160: 蓬江区 | J160: 0.1000
A161: 159 | B161: 2022年广东省第二届“南粤家政”技能大赛江门市选拔赛 | C161: 市一类 | D161: 养老护理员 | E161: 个人 | F161: 徐美娟 | G161: 一等奖（第一名） | H161: 江门市蓬江区幸福寿星安老之家 | I161: 蓬江区 | J161: 0.3000
A162: 160 | B162: 2022年广东省第二届“南粤家政”技能大赛江门市选拔赛 | C162: 市一类 | D162: 养老护理员 | E162: 个人 | F162: 李明燕 | G162: 三等奖（第四名） | H162: 江门市新会区幸福寿星安老之家 | I162: 新会区 | J162: 0.1000
A163: 161 | B163: 2022年广东省第二届“南粤家政”技能大赛江门市选拔赛 | C163: 市一类 | D163: 养老护理员 | E163: 个人 | F163: 秦红艳 | G163: 三等奖（第五名） | H163: 江门市妇女就业服务中心 | I163: 蓬江区 | J163: 0.1000
A164: 162 | B164: 2022年广东省第二届“南粤家政”技能大赛江门市选拔赛 | C164: 市一类 | D164: 家政服务员 | E164: 个人 | F164: 杨镕盈 | G164: 二等奖（第二名） | H164: 广东江门中医药职业学院 | I164: 蓬江区 | J164: 0.2000
A165: 163 | B165: 2022年广东省第二届“南粤家政”技能大赛江门市选拔赛 | C165: 市一类 | D165: 家政服务员 | E165: 个人 | F165: 陈莹莹 | G165: 三等奖（第六名） | H165: 广东江门中医药职业学院 | I165: 蓬江区 | J165: 0.1000
A166: 164 | B166: 2021年江门市第一届职业技能大赛“粤菜师傅”职业技能竞赛暨第四届粤港澳大湾区“粤菜师傅”技能大赛江门选拔赛 | C166: 市一类 | D166: 中式面点师（名厨组） | E166: 个人 | F166: 黄培从 | G166: 三等奖（第四名） | H166: 江门市富山居酒楼有限公司 | I166: 新会区 | J166: 0.1000
A167: 165 | B167: 2021年江门市第一届职业技能大赛“粤菜师傅”职业技能竞赛暨第四届粤港澳大湾区“粤菜师傅”技能大赛江门选拔赛 | C167: 市一类 | D167: 中式面点师（新秀组） | E167: 个人 | F167: 郑可燕 | G167: 一等奖（第一名） | H167: 江门市技师学院 | I167: 蓬江区 | J167: 0.3000
A168: 166 | B168: 2021年江门市第一届职业技能大赛 | C168: 市一类 | D168: 乡村工匠 | E168: 个人 | F168: 罗德刚 | G168: 二等奖（第二名） | H168: 广东聚源建设集团有限公司 | I168: 开平市 | J168: 0.2000
A169: 167 | B169: 2021年江门市第一届职业技能大赛 | C169: 市一类 | D169: 平面设计技术 | E169: 个人 | F169: 刘瑞婷 | G169: 二等奖（第二名） | H169: 江门市技师学院 | I169: 蓬江区 | J169: 0.2000
A170: 168 | B170: 2021年江门市第一届职业技能大赛 | C170: 市一类 | D170: 农村电商（传承组） | E170: 个人 | F170: 龙丹丹 | G170: 三等奖（第六名） | H170: 江门市技师学院 | I170: 蓬江区 | J170: 0.1000
A171: 169 | B171: 2021年江门市第一届职业技能大赛 | C171: 市一类 | D171: 家具制作 | E171: 个人 | F171: 刘飞 | G171: 二等奖（第二名） | H171: 南邦家具厂 | I171: 新会区 | J171: 0.2000
A172: 170 | B172: 2021年江门市第一届职业技能大赛 | C172: 市一类 | D172: 精细木工 | E172: 个人 | F172: 施学根 | G172: 三等奖（第四名） | H172: 台山市大江镇似锦传承公司 | I172: 台山市 | J172: 0.1000
A173: 171 | B173: 2021年江门市第一届职业技能大赛 | C173: 市一类 | D173: 电梯安装维修工 | E173: 团队 | F173: 余启华 | G173: 一等奖（第一名） | H173: 台山市技工学校 | I173: 台山市 | J173: 0.1500
A174: 172 | B174: 2021年江门市第一届职业技能大赛 | C174: 市一类 | D174: 加工中心立柱安装 | E174: 个人 | F174: 李彬杰 | G174: 三等奖（第三名） | H174: 江门市新会技师学院 | I174: 新会区 | J174: 0.2000
A175: 173 | B175: 2021年江门市第一届职业技能大赛 | C175: 市一类 | D175: 快递从业人员 | E175: 个人 | F175: 岑海林 | G175: 二等奖（第二名） | H175: 江门市源颖达货运代理有限公司 | I175: 蓬江区 | J175: 0.2000
A176: 174 | B176: 2021年江门市第一届职业技能大赛 | C176: 市一类 | D176: 快递从业人员 | E176: 个人 | F176: 梁树敏 | G176: 三等奖（第六名） | H176: 江门顺丰速运有限公司 | I176: 蓬江区 | J176: 0.1000
A177: 175 | B177: 2021年江门市第一届职业技能大赛 | C177: 市一类 | D177: 美容 | E177: 个人 | F177: 林桂香 | G177: 二等奖（第二名） | H177: 宝娜美业 | I177: 新会区 | J177: 0.2000
A178: 176 | B178: 2021年江门市乡村振兴职业技能大赛暨广东省乡村振兴职业技能大赛江门选拔赛 | C178: 市一类 | D178: 养老护理员（职工组） | E178: 个人 | F178: 徐厚禄 | G178: 铜奖（第三名） | H178: 江门市福利院 | I178: 蓬江区 | J178: 0.2000
A179: 177 | B179: 2021年江门市乡村振兴职业技能大赛暨广东省乡村振兴职业技能大赛江门选拔赛 | C179: 市一类 | D179: 养老护理员（学生组） | E179: 个人 | F179: 侯绮琳 | G179: 银奖（第二名） | H179: 广东江门中医药职业学院 | I179: 蓬江区 | J179: 0.2000
A180: 178 | B180: 2021年江门市乡村振兴职业技能大赛暨广东省乡村振兴职业技能大赛江门选拔赛 | C180: 市一类 | D180: 养老护理员（学生组） | E180: 个人 | F180: 吴婷婷 | G180: 铜奖（第三名） | H180: 广东江门中医药职业学院 | I180: 蓬江区 | J180: 0.2000
A181: 179 | B181: 2020年江门市职业技能竞赛 | C181: 市一类 | D181: 南粤家政（育婴员）工匠组 | E181: 个人 | F181: 黄小丽 | G181: 三等奖（第六名） | H181: 个人 | I181: 蓬江区 | J181: 0.1000
A182: 180 | B182: 2020年江门市职业技能竞赛 | C182: 市一类 | D182: 电子技术 | E182: 个人 | F182: 薛文辉 | G182: 二等奖（第三名） | H182: 个人 | I182: 蓬江区 | J182: 0.2000
A183: 181 | B183: 2020年江门市职业技能竞赛 | C183: 市一类 | D183: 电子技术 | E183: 个人 | F183: 肖红艳 | G183: 三等奖（第六名） | H183: 个人 | I183: 蓬江区 | J183: 0.1000
A184: 182 | B184: 2021 年广东省消防行业职业技能竞赛江门市预选赛 | C184: 市一类 | D184: 灭火战斗员 | E184: 个人 | F184: 李康 | G184: 铜牌（第三名） | H184: 台城消防站 | I184: 台山市 | J184: 0.2000
A185: 183 | B185: 2021 年广东省消防行业职业技能竞赛江门市预选赛 | C185: 市一类 | D185: 消防装备维护员 | E185: 个人 | F185: 张江华 | G185: 金牌（第一名） | H185: 西环路特勤站 | I185: 蓬江区 | J185: 0.3000
A186: 184 | B186: 2021 年广东省消防行业职业技能竞赛江门市预选赛 | C186: 市一类 | D186: 消防装备维护员 | E186: 个人 | F186: 黄兴雷 | G186: 银牌（第二名） | H186: 白沙消防救援站 | I186: 蓬江区 | J186: 0.2000
A187: 185 | B187: 2021 年广东省消防行业职业技能竞赛江门市预选赛 | C187: 市一类 | D187: 消防通信员 | E187: 个人 | F187: 关志林 | G187: 金牌（第一名） | H187: 沙坪消防救援站 | I187: 鹤山市 | J187: 0.3000
A188: 186 | B188: 2021 年广东省消防行业职业技能竞赛江门市预选赛 | C188: 市一类 | D188: 消防通信员 | E188: 个人 | F188: 刘家荣 | G188: 银牌（第二名） | H188: 台城消防救援站 | I188: 台山市 | J188: 0.2000
A189: 187 | B189: 江门市第三届职业技能大赛 | C189: 市一类 | D189: 美容师 | E189: 个人 | F189: 吕惠君 | G189: 一等奖（第一名） | H189: 江门市宝娜职业培训学校 | I189: 蓬江区 | J189: 0.3000
A190: 188 | B190: 江门市第三届职业技能大赛 | C190: 市一类 | D190: 美容师 | E190: 个人 | F190: 黄福珍 | G190: 二等奖（第二名） | H190: 江门市宝娜美容院 | I190: 蓬江区 | J190: 0.2000
A191: 189 | B191: 江门市第三届职业技能大赛 | C191: 市一类 | D191: 美容师 | E191: 个人 | F191: 韦丽华 | G191: 二等奖（第三名） | H191: 江门市维娜美容中心 | I191: 蓬江区 | J191: 0.2000
A192: 190 | B192: 江门市第三届职业技能大赛 | C192: 市一类 | D192: 美容师 | E192: 个人 | F192: 王庭云 | G192: 三等奖（第四名） | H192: 无 | I192: 蓬江区 | J192: 0.1000
A193: 191 | B193: 江门市第三届职业技能大赛 | C193: 市一类 | D193: 美容师 | E193: 个人 | F193: 陈争艳 | G193: 三等奖（第五名） | H193: 无 | I193: 蓬江区 | J193: 0.1000
A194: 192 | B194: 江门市第三届职业技能大赛 | C194: 市一类 | D194: 美容师 | E194: 个人 | F194: 石凤娇 | G194: 三等奖（第六名） | H194: 江门市匠心形象设计 | I194: 蓬江区 | J194: 0.1000
A195: 193 | B195: 江门市第三届职业技能大赛 | C195: 市一类 | D195: 劳动关系协调员 | E195: 个人 | F195: 郭晓燕 | G195: 一等奖（第一名） | H195: 江海区劳动人事争议调解仲裁院 | I195: 江海区 | J195: 0.3000
A196: 194 | B196: 江门市第三届职业技能大赛 | C196: 市一类 | D196: 劳动关系协调员 | E196: 个人 | F196: 李艳霞 | G196: 二等奖（第二名） | H196: 江门江益磁材有限公司 | I196: 江海区 | J196: 0.2000
A197: 195 | B197: 江门市第三届职业技能大赛 | C197: 市一类 | D197: 劳动关系协调员 | E197: 个人 | F197: 黄翠婷 | G197: 二等奖（第三名） | H197: 鹤山市人力资源和社会保障局 | I197: 鹤山市 | J197: 0.2000
A198: 196 | B198: 江门市第三届职业技能大赛 | C198: 市一类 | D198: 劳动关系协调员 | E198: 个人 | F198: 郭婉晶 | G198: 三等奖（第四名） | H198: 鹤山市劳动人事争议仲裁委员会 | I198: 鹤山市 | J198: 0.1000
A199: 197 | B199: 江门市第三届职业技能大赛 | C199: 市一类 | D199: 劳动关系协调员 | E199: 个人 | F199: 钟林霞 | G199: 三等奖（第五名） | H199: 江门市智慧之源教育科技有限公司 | I199: 蓬江区 | J199: 0.1000
A200: 198 | B200: 江门市第三届职业技能大赛 | C200: 市一类 | D200: 劳动关系协调员 | E200: 个人 | F200: 周旋 | G200: 三等奖（第六名） | H200: 广东杰成新能源材料科技有限公司 | I200: 新会区 | J200: 0.1000
... 41 more rows

Sheet 六公数据 (hidden)
A1: 一、2019年各项目预算额度
A2: 一级项目 | B2: 二级项目 | C2: 预算金额
A3: 江门市“一村一助理”工程专项资金 | C3: =SUM(C4:C5) -> 4,584,800.00
B4: 江门市“一村一助理”工程专项资金 | C4: 150,000.00
B5: 江门市“一村一助理”工程专项资金 | C5: 4,434,800.00
A6: 党建工作专项资金 | C6: =SUM(C7:C9) -> 78,470,900.00
B7: 城市基层党建工作经费 | C7: 0.00
B8: 全市“两新”组织党建工作保障机制专项资金 | C8: 2,900,000.00
B9: 党的基层组织建设经费市级配套资金 | C9: 75,570,900.00
A10: 对口支援工作经费 | C10: =SUM(C11:C14) -> 2,000,000.00
B11: 援疆干部慰问经费 | C11: 0.00
B12: 援疆工作经费 | C12: 1,350,000.00
B13: 援疆援川干部慰问经费 | C13: 50,000.00
B14: 援川工作经费 | C14: 600,000.00
A15: 全市党建工作“亿元保障计划”专项资金 | C15: =SUM(C16) -> 40,000,000.00
B16: 全市党建工作“亿元保障计划”专项资金 | C16: 40,000,000.00
A17: 组织事务经费 | C17: =SUM(C18:C21) -> 2,138,000.00
B18: 党内集中教育工作经费 | C18: 300,000.00
B19: 党代表活动经费 | C19: 760,000.00
B20: 领导干部特殊困难补助 | C20: 30,000.00
B21: 基层干部学历提高班学费补助 | C21: 1,048,000.00
A22: 干部培训经费 | C22: =SUM(C23:C27) -> 6,050,000.00
B23: 业务培训支出 | C23: 0.00
B24: 全市统筹干部教育培训经费 | C24: 4,450,000.00
B25: 部自身建设培训经费 | C25: 700,000.00
B26: 公务员管理专项支出 | C26: 200,000.00
B27: 公务员管理专项支出 | C27: 700,000.00 | D27: 集中采购目录外的采购项目
A28: 大型修缮 | C28: =SUM(C29) -> 400,000.00
B29: 大楼维修（护）经费 | C29: 400,000.00 | D29: 修缮工程
A30: 专项业务支出 | C30: =SUM(C31:C48) -> 2,002,600.00
B31: 业务接待支出 | C31: 40,000.00
B32: 其他专项业务支出 | C32: 50,000.00 | D32: 办公设备维修和保养服务
B33: 其他专项业务支出 | C33: 50,000.00 | D33: 计算机设备维修和保养服务
B34: 其他专项业务支出 | C34: 80,000.00 | D34: 硒鼓粉盒
B35: 其他专项业务支出 | C35: 150,000.00
B36: 其他专项业务支出 | C36: 50,000.00
B37: 其他专项业务支出 | C37: 60,000.00 | D37: 印刷服务
B38: 其他专项业务支出 | C38: 300,000.00
B39: 其他专项业务支出 | C39: 30,000.00
B40: 其他专项业务支出 | C40: 170,600.00
B41: 其他专项业务支出 | C41: 107,000.00
B42: 其他专项业务支出 | C42: 60,000.00 | D42: 复印纸
B43: 其他专项业务支出 | C43: 100,000.00
B44: 其他专项业务支出 | C44: 75,000.00
B45: 其他专项业务支出 | C45: 80,000.00
B46: 办公设备购置 | C46: 50,000.00 | D46: 家具用具
B47: 办公设备购置 | C47: 350,000.00 | D47: 通用设备
B48: 信息网络维护及软件购置更新 | C48: 200,000.00
A50: 二、2019年六公预算
A51: 一级项目 | B51: 二级项目 | C51: 三级项目 | D51: 因公出国境 | E51: 公务接待费 | F51: 公务用车运行维护费 | G51: 会议费 | H51: 培训费 | I51: 差旅费
A52: 干部培训经费 | B52: 公务员管理专项支出 | C52: 公务员培训 | I52: 200,000.00
A53: 专项业务支出 | B53: 其他专项业务支出 | C53: 其他专项业务支出 | I53: 150,000.00
C54: 非专项 | I54: 20,000.00
A55: 专项业务支出 | B55: 业务接待支出 | C55: 业务接待支出 | E55: 40,000.00
C56: 非专项 | F56: 30,000.00
A57: 专项业务支出 | B57: 其他专项业务支出 | C57: 会议费 | G57: 100,000.00
A58: 干部培训经费 | B58: 业务培训支出 | C58: 业务培训支出 | H58: 0
A59: 干部培训经费 | B59: 全市统筹干部教育培训经费 | C59: 全市统筹干部教育培训经费 | H59: 4,450,000.00
A60: 干部培训经费 | B60: 部自身建设培训经费 | C60: 部自身建设培训经费 | H60: 700,000.00
A61: 干部培训经费 | B61: 公务员管理专项支出 | C61: 公务员培训 | H61: 700,000.00
C62: 合计 | D62: =SUM(D52:D61) -> 0 | E62: =SUM(E52:E61) -> 40,000.00 | F62: 30,000.00 | G62: 100,000.00 | H62: 5,850,000.00 | I62: 370,000.00

Sheet 2019年预算参考 (hidden)
A1: 2019年组织部专项支出预算（参考）
K2: 单位：万元
B3: 一级项目名称 | C3: 二级项目名称 | D3: 三级项目名称 | E3: 经济科目 | F3: 预算下达指标 | G3: 1-6月支出数 | H3: 剩余指标数 | I3: 支出进度% | J3: 科室 | K3: 备注
A4: 合计 | F4: =F5+F8+F11+F16+F18+F23+F54+F56 -> 13,530.11 | G4: =G5+G8+G11+G16+G18+G23+G54+G56 -> 10,859.79 | H4: =F4-G4 -> 2,670.32 | I4: =G4/F4 -> 80.26% | K4: （我部在全市综合项目支付进度排名第4名）
A5: * | B5: 1.江门市“一村一助理”工程专项资金 | F5: =F6+F7 -> 458.48 | G5: =G6+G7 -> 443.48 | H5: 15.00 | I5: 96.73%
B6: 江门市“一村一助理”工程专项资金 | C6: 江门市“一村一助理”专项资金 | D6: 江门市“一村一助理”专项资金 | E6: 委托业务费 | F6: 443.48 | G6: 443.48 | H6: 0 | I6: 100.00% | J6: 组织二科 | K6: 财政户，年初已分配各市区
B7: 江门市“一村一助理”工程专项资金 | C7: 江门市“一村一助理”招录工作 | D7: 江门市“一村一助理”招录工作 | E7: 委托业务费 | F7: 15.00 | G7: 0 | H7: 15.00 | I7: 0.00% | J7: 组织二科 | K7: 7月6日完成笔试工作，8月2日开展资格复审，8月8日至9日开展面试工作。待面试工作完成后，即可将招考工作经费划拨给市人事考试院。
A8: * | B8: 2.党建工作专项资金 | F8: =F9+F10 -> 7,840.17 | G8: =G9+G10 -> 7,827.39 | H8: 12.78 | I8: 99.84%
B9: 党建工作专项资金 | C9: 党的基层组织建设经费市级配套资金 | D9: 党的基层组织建设经费市级配套资金 | F9: 7,550.17 | G9: 7,550.17 | H9: 0 | I9: 100.00% | J9: 组织二科 | K9: 财政户，7550.17分配各市区（补助下级）
B10: 党建工作专项资金 | C10: 全市“两新”组织党建工作保障机制专项资金 | D10: 全市“两新”组织党建工作保障机制专项资金 | F10: 290.00 | G10: 277.22 | H10: 12.78 | I10: 95.59% | J10: 组织三科 | K10: 财政户，下达290万分配各市区（补助下级）
A11: * | B11: 3.对口支援工作经费 | F11: =F12+F14+F13+F15 -> 140.00 | G11: =G12+G14+G13+G15 -> 62.90 | H11: 77.10 | I11: 44.93%
B12: 对口支援工作经费 | C12: 援疆援川干部慰问工作经费 | D12: 援疆援川干部慰问经费 | F12: 5.00 | G12: 2.90 | H12: 2.10 | I12: 58.00% | J12: 干部三科
B13: 对口支援工作经费 | C13: 对口扶贫对口支援挂职干部慰问工作经费 | D13: 对口扶贫对口支援挂职干部慰问工作经费 | F13: 15.00 | G13: 0 | H13: 15.00 | I13: 0.00% | J13: 干部三科 | K13: 财政户
B14: 对口支援工作经费 | C14: 援疆工作经费 | D14: 援疆工作经费 | F14: 60.00 | G14: 60.00 | H14: 0 | I14: 100.00% | J14: 干部三科 | K14: 财政户，原预算120万，财政收回60万。
B15: 对口支援工作经费 | C15: 援川工作经费 | D15: 援川工作经费 | F15: 60.00 | G15: 0 | H15: 60.00 | I15: 0.00% | J15: 干部三科 | K15: 财政户，因援川人员变动，故耽误了支付进度
A16: * | B16: 4.全市党建工作“亿元保障计划”专项资金 | F16: =F17 -> 4,000.00 | G16: =G17 -> 2,162.93 | H16: 1,837.07 | I16: 54.07%
B17: 全市党建工作“亿元保障计划”专项资金 | C17: 全市党建“亿元保障计划”专项资金 | D17: 全市党建“亿元保障计划”专项资金 | F17: 4,000.00 | G17: 2,162.93 | H17: 1,837.07 | I17: 54.07% | J17: 组织二科 | K17: 财政户。市党员教育基地升级改造未完成、镇街党群服务中心建设未成、软弱涣散村社区党组织未验收等原因。
A18: * | B18: 5.组织事务经费 | F18: =F19+F20+F21+F22 -> 213.80 | G18: =G19+G20+G21+G22 -> 105.18 | H18: 108.62 | I18: 49.20%
B19: 组织事务经费 | C19: 不忘初心党内集中教育经费 | D19: 不忘初心党内集中教育经费 | E19: 办公费 | F19: 30.00 | G19: 0.61 | H19: 29.39 | I19: 2.03% | J19: 组织四科 | K19: 我市“不忘初心、牢记使命”主题教育将从9月开始，目前还未正式启动。
B20: 组织事务经费 | C20: 党代表活动经费 | D20: 党代表活动经费 | F20: 76.00 | G20: 0 | H20: 76.00 | I20: 0.00% | J20: 组织一科 | K20: 计划8月份进行支付。
B21: 组织事务经费 | C21: 基层干部学历提高班学费补助 | D21: 基层干部学历提高班学费补助 | F21: 104.80 | G21: 101.84 | H21: 2.96 | I21: 97.18% | J21: 干部培训科 | K21: 已在7月办理支付手续，本年度应付费用共101.84万。
B22: 组织事务经费 | C22: 领导干部特殊困难补助 | D22: 领导干部特殊困难补助 | E22: 商品和服务支出 | F22: 3.00 | G22: 2.73 | H22: 0.27 | I22: 91.00% | J22: 干部一科、三科
A23: * | B23: 6.干部培训经费 | F23: =SUM(F24:F53) -> 605.00 | G23: =SUM(G24:G53) -> 120.77 | H23: =SUM(H24:H53) -> 484.23 | I23: 19.96%
B24: 干部培训经费 | C24: 全市统筹干部教育培训、自身建设培训经费 | D24: “一把手”党建工作专题培训班 | E24: 培训费 | F24: 10.00 | G24: 7.74 | H24: 2.26 | I24: 77.37% | J24: 干部培训科
B25: 干部培训经费 | D25: 全市部门（单位）分管党建工作负责同志党建专题培训班 | E25: 培训费 | F25: 0 | G25: 5.57 | H25: -5.57 | K25: 林书记要求临时增加的培训班，资金来源统筹
B26: 干部培训经费 | D26: 构建良好政治生态专题培训班 | E26: 培训费 | F26: 45.00 | H26: 45.00 | I26: 0.00% | J26: 干部培训科 | K26: 计划7月28日开班。(经与中央党校沟通，此班改为“党性教育专题培训班”）
B27: 干部培训经费 | D27: 国企专题研修班 | E27: 培训费 | F27: 45.00 | H27: 45.00 | I27: 0.00% | J27: 干部培训科 | K27: 支付手续正在办理中。
B28: 干部培训经费 | D28: 培训管理者培训班 | E28: 培训费 | F28: 30.00 | G28: 22.37 | H28: 7.63 | I28: 74.58% | J28: 干部培训科
B29: 干部培训经费 | D29: 江门市领导干部学习贯彻中央、省委、市委重大战略部署专题研讨班 | E29: 培训费 | F29: 30.00 | H29: 30.00 | I29: 0.00% | J29: 干部培训科 | K29: 3月底已举办的粤港澳发展规划纲要专题研讨班所需经费，在市委党校预算计划内列支，未产生其他超出费用，暂未有其他开支项目。
B30: 干部培训经费 | D30: 金融专题研修班 | E30: 培训费 | F30: 40.00 | H30: 40.00 | I30: 0.00% | J30: 干部培训科 | K30: 7月21日开班。
B31: 干部培训经费 | D31: 骨干师资培训班 | E31: 培训费 | F31: 40.00 | H31: 40.00 | I31: 0.00% | J31: 干部培训科 | K31: 由党校承办，待党校提交清单后办理支付手续。
B32: 干部培训经费 | D32: 民营经济与民营企业专题研修班 | E32: 培训费 | F32: 20.00 | H32: 20.00 | I32: 0.00% | J32: 干部培训科 | K32: 计划10月办班。
B33: 干部培训经费 | D33: 省委组织部定向班 | E33: 培训费 | F33: 5.00 | G33: 0.78 | H33: 4.22 | I33: 15.68% | J33: 干部培训科 | K33: 未产生另聘专家课酬。
B34: 干部培训经费 | D34: 江门干部大讲堂 | E34: 培训费 | F34: 30.00 | G34: 3.19 | H34: 26.81 | I34: 10.62% | J34: 干部培训科 | K34: 干部大讲堂共4期，每季度1期，已举办2期，其中已结算1期，需等党校提交清单后办理支付手续。
B35: 干部培训经费 | D35: 全市组工干部党史国史教育专题培训班 | E35: 培训费 | F35: 50.00 | H35: 50.00 | I35: 0.00% | J35: 机关党委 | K35: 培训班分别于7月14-19日、8月4-9日开展，预计8月底前可完成支出。
B36: 干部培训经费 | D36: 全市组织工作公文写作专题培训班 | E36: 培训费 | F36: 18.00 | H36: 18.00 | I36: 0.00% | J36: 调研科 | K36: 今年省的会议是6月20日召开。该培训班计划8月底举办。
B37: 干部培训经费 | D37: 江门市村（社区）党组织书记专题培训班 | E37: 培训费 | F37: 40.00 | G37: 40.00 | H37: 0 | I37: 100.00% | J37: 组织二科
B38: 干部培训经费 | D38: 全市镇（街）组织委员和专职组织员“提升组织力”专题培训班 | E38: 培训费 | F38: 22.00 | G38: 21.85 | H38: 0.15 | I38: 99.32% | J38: 组织二科
B39: 干部培训经费 | D39: 江门市“两新”组织中青年党务骨干培训示范班 | E39: 培训费 | F39: 10.00 | G39: 5.79 | H39: 4.21 | I39: 57.90% | J39: 组织三科
B40: 干部培训经费 | D40: 江门市“两新”组织党组织书记培训示范班 | E40: 培训费 | F40: 15.00 | H40: 15.00 | I40: 0.00% | J40: 组织三科 | K40: 计划10月份支付。
B41: 干部培训经费 | D41: 江门市“两新”组织通讯员培训班 | E41: 培训费 | F41: 5.00 | H41: 5.00 | I41: 0.00% | J41: 组织三科 | K41: 计划10月份支付。
B42: 干部培训经费 | D42: 市直机关党务干部能力素质提高班 | E42: 培训费 | F42: 22.00 | H42: 22.00 | I42: 0.00% | J42: 组织三科 | K42: 分两期召开，一期在7月中旬，已经培训完成，正在等浙江大学寄回办班的合同。一期在8月上旬。
B43: 干部培训经费 | D43: 全市组织人事干部专题培训班 | E43: 培训费 | F43: 28.00 | H43: 28.00 | I43: 0.00% | J43: 干部一科 | K43: 初步计划在8月底办班。
B44: 干部培训经费 | D44: 全市人事干部业务培训班 | E44: 培训费 | F44: 2.00 | G44: 1.29 | H44: 0.71 | I44: 64.50% | J44: 干部一科
B45: 干部培训经费 | D45: 新修订《党政领导干部选拔任用工作条例》专题培训班 | E45: 培训费 | F45: 0.50 | G45: 0.12 | H45: 0.38 | I45: 24.00% | J45: 干部监督科 | K45: 统筹使用
B46: 干部培训经费 | D46: 全市公务员信息更新采集和公务员统计业务培训班 | E46: 培训费 | F46: 3.50 | G46: 2.41 | H46: 1.09 | I46: 68.86% | J46: 信息科 | K46: 按照工作计划，该培训班将于年底进行。
B47: 干部培训经费 | D47: 全市党内统计业务培训班 | E47: 培训费 | F47: 4.00 | G47: 1.64 | H47: 2.36 | I47: 41.00% | J47: 信息科 | K47: 按照工作计划，该培训班将于年底进行。
B48: 干部培训经费 | C48: 公务员培训费 | D48: 年轻干部能力提升培训班（科级公务员专门业务培训） | E48: 培训费 | F48: 33.00 | H48: 33.00 | I48: 0.00% | J48: 干部培训科 | K48: 按照省的统一安排，在下半年落实。
B49: 干部培训经费 | D49: 市直公务员初任培训班 | E49: 培训费 | F49: 12.00 | G49: 8.02 | H49: 3.98 | I49: 66.83% | J49: 干部培训科
B50: 干部培训经费 | D50: 市直科级任职培训班 | E50: 培训费 | F50: 15.00 | H50: 15.00 | I50: 0.00% | J50: 干部培训科 | K50: 已结束，待党校提交清单后办理支付手续。
B51: 干部培训经费 | D51: 公务员对口培训班 | E51: 培训费 | F51: 12.00 | H51: 12.00 | I51: 0.00% | J51: 干部培训科 | K51: 按照省的统一安排，在下半年落实。
B52: 干部培训经费 | D52: 在职（全员）培训班 | E52: 培训费 | F52: 8.00 | H52: 8.00 | I52: 0.00% | J52: 干部培训科 | K52: 按照省的统一安排，在下半年落实。
B53: 干部培训经费 | D53: 双基培训班 | E53: 培训费 | F53: 10.00 | H53: 10.00 | I53: 0.00% | J53: 干部培训科 | K53: 按照省的统一安排，在下半年落实。
A54: * | B54: 7.大型修缮 | F54: =F55 -> 40.00 | G54: 15.46 | H54: 24.54 | I54: 38.65%
B55: 大型修缮 | C55: 大型修缮费 | D55: 大型修缮费 | E55: 维修（护）费 | F55: 40.00 | G55: 11.47 | H55: 28.53 | I55: 28.68% | J55: 办公室 | K55: 政府性基金预算安排。
A56: * | B56: 8.专项业务支出 | F56: =F57+F58+F59+F60+F61+F62+F63 -> 232.66 | G56: =G57+G58+G59+G60+G61+G62+G63 -> 121.68 | H56: =H57+H58+H59+H60+H61+H62+H63 -> 110.98 | I56: 52.30%
B57: 专项业务支出 | C57: 大组工网网络购置 | D57: 大组工网网络购置 | E57: 网络设备购置 | F57: 20.00 | G57: 0 | H57: 20.00 | I57: 0.00% | J57: 信息科 | K57: 按照工作计划，该项工作将于9月份逐步开展。
B58: 专项业务支出 | C58: 办公设备购置 | D58: 办公设备购置 | E58: 办公设备购置 | F58: 40.00 | G58: 34.26 | H58: 5.74 | I58: 85.65% | J58: 办公室
B59: 专项业务支出 | C59: 业务接待支出 | D59: 接待费 | E59: 接待费 | F59: 4.00 | G59: 0.25 | H59: 3.75 | I59: 6.25% | J59: 办公室
B60: 专项业务支出 | C60: 会议费 | D60: 会议费 | E60: 会议费 | F60: 10.00 | G60: 0.97 | H60: 9.03 | I60: 9.70% | J60: 办公室
B61: 专项业务支出 | C61: 干部人事档案整理服务费 | D61: 干部人事档案整理服务费 | E61: 委托业务费 | F61: 10.70 | G61: 1.83 | H61: 8.87 | I61: 17.10% | J61: 信息科 | K61: 按照工作计划，该项工作将于9月份正式开展。
B62: 专项业务支出 | C62: 黑龙江七台河市、四川甘孜州、广西崇左等地选派到我市直挂职干部的租住费用 | D62: 黑龙江七台河市、四川甘孜州、广西崇左等地选派到我市直挂职干部的租住费用 | E62: 租赁费 | F62: 32.40 | G62: 0 | H62: 32.40 | I62: 0.00% | J62: 干部三科 | K62: 该笔资金由原对口支援工作经费援藏工作经费调整过来，计划10月份对七台河市挂职干部租赁费做一次结算，计划12月份对崇左市挂职干部租赁费做一次结算。 | L62: 年中追加
B63: 专项业务支出 | C63: 其他专项业务支出 | D63: 其他商品和服务支出 | F63: 115.56 | G63: 84.37 | H63: 31.19 | I63: 73.01% | J63: 办公室

Sheet 经常性经费预测 (hidden)
AI1: 267321 | AJ1: =AI11-AI1 -> 
H2: 手工录入 | J2: 数据 | K2: 公式
H3: 设置公式部分 | J3: 修改部分 | AI3: =AI11-SUM(AI13:AI13,#REF!,#REF!,#REF!,#REF!,#REF!,#REF!,#REF!) ->  | AJ3: =AJ11-SUM(AJ13:AJ13,#REF!,#REF!,#REF!,#REF!,#REF!,#REF!,#REF!) ->  | AK3: =AK11-SUM(AK13:AK13,#REF!,#REF!,#REF!,#REF!,#REF!,#REF!,#REF!) ->  | AM3: =AM11-SUM(AM13:AM13,#REF!,#REF!,#REF!,#REF!,#REF!,#REF!,#REF!) ->  | AN3: =AN11-SUM(AN13:AN13,#REF!,#REF!,#REF!,#REF!,#REF!,#REF!,#REF!) ->  | AO3: =AO11-SUM(AO13:AO13,#REF!,#REF!,#REF!,#REF!,#REF!,#REF!,#REF!) ->  | AP3: =AP11-SUM(AP13:AP13,#REF!,#REF!,#REF!,#REF!,#REF!,#REF!,#REF!) ->  | AQ3: =AQ11-SUM(AQ13:AQ13,#REF!,#REF!,#REF!,#REF!,#REF!,#REF!,#REF!) ->  | AS3: =AS11-SUM(AS13:AS13,#REF!,#REF!,#REF!,#REF!,#REF!,#REF!,#REF!) ->  | AT3: =AT11-SUM(AT13:AT13,#REF!,#REF!,#REF!,#REF!,#REF!,#REF!,#REF!) ->  | AU3: =AU11-SUM(AU13:AU13,#REF!,#REF!,#REF!,#REF!,#REF!,#REF!,#REF!) ->  | BI3: =BI11-SUM(BI13:BI13,#REF!,#REF!,#REF!,#REF!,#REF!,#REF!,#REF!) ->  | BJ3: =BJ11-SUM(BJ13:BJ13,#REF!,#REF!,#REF!,#REF!,#REF!,#REF!,#REF!) ->  | BK3: =BK11-SUM(BK13:BK13,#REF!,#REF!,#REF!,#REF!,#REF!,#REF!,#REF!) ->  | BQ3: =BQ11-SUM(BQ13:BQ13,#REF!,#REF!,#REF!,#REF!,#REF!,#REF!,#REF!) ->  | BU3: =BU11-SUM(BU13:BU13,#REF!,#REF!,#REF!,#REF!,#REF!,#REF!,#REF!) ->  | BV3: =BV11-SUM(BV13:BV13,#REF!,#REF!,#REF!,#REF!,#REF!,#REF!,#REF!) ->  | BW3: =BW11-SUM(BW13:BW13,#REF!,#REF!,#REF!,#REF!,#REF!,#REF!,#REF!) ->  | BX3: =BX11-SUM(BX13:BX13,#REF!,#REF!,#REF!,#REF!,#REF!,#REF!,#REF!) ->  | BY3: =BY11-SUM(BY13:BY13,#REF!,#REF!,#REF!,#REF!,#REF!,#REF!,#REF!) ->  | BZ3: =BZ11-SUM(BZ13:BZ13,#REF!,#REF!,#REF!,#REF!,#REF!,#REF!,#REF!) ->  | CD3: =CD11-SUM(CD13:CD13,#REF!,#REF!,#REF!,#REF!,#REF!,#REF!,#REF!) ->  | CE3: =CE11-SUM(CE13:CE13,#REF!,#REF!,#REF!,#REF!,#REF!,#REF!,#REF!) ->  | CF3: =CF11-SUM(CF13:CF13,#REF!,#REF!,#REF!,#REF!,#REF!,#REF!,#REF!) ->  | CG3: =CG11-SUM(CG13:CG13,#REF!,#REF!,#REF!,#REF!,#REF!,#REF!,#REF!) ->  | CH3: =CH11-SUM(CH13:CH13,#REF!,#REF!,#REF!,#REF!,#REF!,#REF!,#REF!) ->  | CK3: =CK11-SUM(CK13:CK13,#REF!,#REF!,#REF!,#REF!,#REF!,#REF!,#REF!) -> 
H4: 有公式调整部分，或注意部分
H5: 定员定额单位 | J5: 编制单位：江门市财政局 | R5: 日期：2019年1月29日 | AM5: 3.3048 | AS5: 3.6 | AU5: 2.4 | AV5: 1.4 | AW5: 1.60572 | AY5: 1.284576 | BA5: 1.861 | BB5: 0.7444 | BC5: 0.5118 | BD5: 0.5118 | BE5: 0.0279 | BF5: 0.0744 | BR5: 0.375 | BU5: =SUBTOTAL(9,BU11:BU9696) ->  | BV5: =2.0344+0.2728 -> 2.3072 | BW5: 4.1484 | BX5: 0.80 | BY5: 1.21584 | BZ5: 0.85 | CA5: 0.2727 | CB5: 0.3990 | CL5: 单位：万元
A6: 2011年备注 | B6: 2012年备注 | C6: 2013年备注 | D6: 2014年备注 | E6: 2015年备注 | F6: 2016年备注 | G6: 2018年备注 | H6: 2018年备注 | I6: 单位代码 | J6: 单位 | K6: 在职2019年功能科目 | M6: 离退休2019年功能科目 | O6: 归口业务科 | P6: 2019年预算 | Q6: 2020年单位编制人数（增减纪委派驻人员） | R6: 其中： | U6: 实有人数 （2019年8月统发数据） | V6: 单位离退休人数 （2018年10月） | Z6: 政府雇员 | AB6: 经费计算标准（第四部分） | AI6: 核定经常性经费拨款
AB7: 在职 | AC7: 事业单位增加补贴 | AD7: 福利费 | AE7: 离退休 | AF7: 退休增加 | AG7: 公用经费 | AH7: 公用经费增加 | AI7: 拨款总计 | AJ7: 在职个人及公用经费合计 | AK7: 在职个人经费 | BU7: 对个人和家庭的补助支出（离退休经费） | CD7: 公用经费 | CL7: 供给比例% （在职、公用） | CM7: 供给比例% （离退休）
AK8: 工资福利支出 | BQ8: 对个人和家庭的补助支出（在职） | CD8: 小计 | CE8: 福利费 | CH8: 日常公用经费 | CI8: 公务交通补贴 | CJ8: 保留公车运行维护费 | CK8: 公务出行租赁经费
AK9: 工资福利支出合计 | AL9: 在编在职人员工资福利支出 | AZ9: 在编在职人员社会保障缴费 | BH9: 政府雇员 | BQ9: 小计 | BR9: 其中：
K10: 科目代码 | L10: 科目名称 | M10: 科目代码 | N10: 科目名称 | P10: 编制 | R10: 编制 | S10: 单列编制 | T10: 纪委派驻人员 | V10: 小计 | W10: 离休 | X10: 退休 | Y10: 退职 | Z10: 原管理方式雇员（包含在在职实有人数中） | AA10: 现管理方式雇员 | AL10: 小计 | AM10: 基本工资 | AN10: 正常津补贴 | AO10: 行政单位特殊岗位津贴 | AP10: 奖金（含年终考核称职奖） | AQ10: 其他补贴 | AR10: 市直机关单位年度绩效考核奖 | AS10: 基础性绩效工资 | AT10: 中小学教师、事业单位特殊岗位津贴 | AU10: 奖励性绩效工资 | AV10: 事业单位核增绩效工资 | AW10: 住房改革补贴 | AX10: 住房补贴（2210203） | AY10: 住房公积金（2210201） | AZ10: 小计 | BA10: 基本养老保险缴费（2080505） | BB10: 职业年金缴费（2080506） | BC10: 职工基本医疗保险缴费(2101101/2101102) | BD10: 公务员医疗补助缴费(2101103) | BE10: 工伤保险 | BF10: 生育保险 | BG10: 其他社会保障缴费（含教师失业保险） | BH10: 小计 | BI10: 雇员工资 | BJ10: 雇员年终考核称职奖 | BK10: 雇员年度绩效考核奖 | BL10: 雇员住房公积金（2210201） | BM10: 雇员住房改革补贴 | BN10: 雇员住房补贴（2210203） | BO10: 政府雇员医疗保险(2101101) | BP10: 政府雇员除医疗外社保缴费 | BR10: 行政事业单位计生奖 | BS10: 雇员计生奖 | BT10: 其他(含教师节慰问金等） | BU10: 小计 | BV10: 基本离退休费 | BW10: 离退休人员补贴 | BX10: 离退休人员节日津贴 | BY10: 离退休人员住房改革补贴 | BZ10: 离退休春节慰问金 | CA10: 基本医疗保险缴费(2101101/2101102) | CB10: 公务员医疗补助缴费(2101103) | CC10: 其他(含教师节慰问金等） | CE10: 福利费小计 | CF10: 福利费（在职） | CG10: 福利费（离退休） | CO10: 跟进
I11: 大项 | J11: 合计 | P11: =P12+#REF!+#REF!+#REF!+#REF! ->  | Q11: =Q12+#REF!+#REF!+#REF!+#REF! ->  | R11: =R12+#REF!+#REF!+#REF!+#REF! ->  | S11: =S12+#REF!+#REF!+#REF!+#REF! ->  | T11: =T12+#REF!+#REF!+#REF!+#REF! ->  | U11: =U12+#REF!+#REF!+#REF!+#REF! ->  | V11: =V12+#REF!+#REF!+#REF!+#REF! ->  | W11: =W12+#REF!+#REF!+#REF!+#REF! ->  | X11: =X12+#REF!+#REF!+#REF!+#REF! ->  | Y11: =Y12+#REF!+#REF!+#REF!+#REF! ->  | Z11: =Z12+#REF!+#REF!+#REF!+#REF! ->  | AA11: =AA12+#REF!+#REF!+#REF!+#REF! ->  | AI11: =AI12+#REF!+#REF!+#REF!+#REF! ->  | AJ11: =AJ12+#REF!+#REF!+#REF!+#REF! ->  | AK11: =AK12+#REF!+#REF!+#REF!+#REF! ->  | AL11: =AL12+#REF!+#REF!+#REF!+#REF! ->  | AM11: =AM12+#REF!+#REF!+#REF!+#REF! ->  | AN11: =AN12+#REF!+#REF!+#REF!+#REF! ->  | AO11: =AO12+#REF!+#REF!+#REF!+#REF! ->  | AP11: =AP12+#REF!+#REF!+#REF!+#REF! ->  | AQ11: =AQ12+#REF!+#REF!+#REF!+#REF! ->  | AR11: =AR12+#REF!+#REF!+#REF!+#REF! ->  | AS11: =AS12+#REF!+#REF!+#REF!+#REF! ->  | AT11: =AT12+#REF!+#REF!+#REF!+#REF! ->  | AU11: =AU12+#REF!+#REF!+#REF!+#REF! ->  | AV11: =AV12+#REF!+#REF!+#REF!+#REF! ->  | AW11: =AW12+#REF!+#REF!+#REF!+#REF! ->  | AX11: =AX12+#REF!+#REF!+#REF!+#REF! ->  | AY11: =AY12+#REF!+#REF!+#REF!+#REF! ->  | AZ11: =AZ12+#REF!+#REF!+#REF!+#REF! ->  | BA11: =BA12+#REF!+#REF!+#REF!+#REF! ->  | BB11: =BB12+#REF!+#REF!+#REF!+#REF! ->  | BC11: =BC12+#REF!+#REF!+#REF!+#REF! ->  | BD11: =BD12+#REF!+#REF!+#REF!+#REF! ->  | BE11: =BE12+#REF!+#REF!+#REF!+#REF! ->  | BF11: =BF12+#REF!+#REF!+#REF!+#REF! ->  | BG11: =BG12+#REF!+#REF!+#REF!+#REF! ->  | BH11: =BH12+#REF!+#REF!+#REF!+#REF! ->  | BI11: =BI12+#REF!+#REF!+#REF!+#REF! ->  | BJ11: =BJ12+#REF!+#REF!+#REF!+#REF! ->  | BK11: =BK12+#REF!+#REF!+#REF!+#REF! ->  | BL11: =BL12+#REF!+#REF!+#REF!+#REF! ->  | BM11: =BM12+#REF!+#REF!+#REF!+#REF! ->  | BN11: =BN12+#REF!+#REF!+#REF!+#REF! ->  | BO11: =BO12+#REF!+#REF!+#REF!+#REF! ->  | BP11: =BP12+#REF!+#REF!+#REF!+#REF! ->  | BQ11: =BQ12+#REF!+#REF!+#REF!+#REF! ->  | BR11: =BR12+#REF!+#REF!+#REF!+#REF! ->  | BS11: =BS12+#REF!+#REF!+#REF!+#REF! ->  | BT11: =BT12+#REF!+#REF!+#REF!+#REF! ->  | BU11: =BU12+#REF!+#REF!+#REF!+#REF! ->  | BV11: =BV12+#REF!+#REF!+#REF!+#REF! ->  | BW11: =BW12+#REF!+#REF!+#REF!+#REF! ->  | BX11: =BX12+#REF!+#REF!+#REF!+#REF! ->  | BY11: =BY12+#REF!+#REF!+#REF!+#REF! ->  | BZ11: =BZ12+#REF!+#REF!+#REF!+#REF! ->  | CA11: =CA12+#REF!+#REF!+#REF!+#REF! ->  | CB11: =CB12+#REF!+#REF!+#REF!+#REF! ->  | CC11: =CC12+#REF!+#REF!+#REF!+#REF! ->  | CD11: =CD12+#REF!+#REF!+#REF!+#REF! ->  | CE11: =CE12+#REF!+#REF!+#REF!+#REF! ->  | CF11: =CF12+#REF!+#REF!+#REF!+#REF! ->  | CG11: =CG12+#REF!+#REF!+#REF!+#REF! ->  | CH11: =CH12+#REF!+#REF!+#REF!+#REF! ->  | CI11: =CI12+#REF!+#REF!+#REF!+#REF! ->  | CJ11: =CJ12+#REF!+#REF!+#REF!+#REF! ->  | CK11: =CK12+#REF!+#REF!+#REF!+#REF! -> 
I12: 大项 | J12: 一、公务员单位（含参依照单位） | P12: =SUM(P13:P13) -> 49 | Q12: 63 | R12: 60 | S12: 0 | T12: 3 | U12: 59 | V12: 9 | W12: 0 | X12: 9 | Y12: 0 | Z12: 1 | AA12: 4 | AI12: =SUM(AI13:AI13) -> 1,299.69 | AJ12: 1,255.52 | AK12: 1,107.58 | AL12: 854.01 | AM12: 165.22 | AN12: 385.28 | AO12: 0.79 | AP12: 13.83 | AQ12: 0.28 | AR12: 84.81 | AS12: 0 | AT12: 0 | AU12: 0 | AV12: 0 | AW12: 99.81 | AX12: 24.13 | AY12: 79.85 | AZ12: 226.10 | BA12: 113.02 | BB12: 45.21 | BC12: 30.58 | BD12: 31.08 | BE12: 1.69 | BF12: 4.52 | BG12: 0 | BH12: 27.47 | BI12: 14.15 | BJ12: 0.80 | BK12: 3.00 | BL12: 2.15 | BM12: 2.69 | BN12: 1.62 | BO12: =SUM(BO13:BO13) -> 0.82 | BP12: 2.23 | BQ12: 20.25 | BR12: 19.13 | BS12: 1.13 | BT12: 0 | BU12: 44.17 | BV12: 0 | BW12: 0 | BX12: 7.20 | BY12: 16.71 | BZ12: 9.00 | CA12: 5.63 | CB12: 5.63 | CC12: 0 | CD12: 127.69 | CE12: 1.80 | CF12: 1.53 | CG12: 0.27 | CH12: 81.90 | CI12: 34.69 | CJ12: 3.00 | CK12: 6.30
C13: 江机编办[2012]227号 | F13: 根据江机编办［2015］475号，增加编制4名 | H13: 根据江机编办［2017］47号，增加行政执法专项编制4名，增编后，核定编制46名 | I13: 147001 | J13: 中国共产党江门市委员会组织部 | K13: 2013201 | L13: 行政运行 | M13: 2080501 | N13: 归口管理的行政单位离退休 | O13: 行政政法 | P13: 49 | Q13: =SUM(R13:T13) -> 63 | R13: =49-3+14 -> 60 | T13: 3 | U13: 59 | V13: =SUM(W13:Y13) -> 9 | W13: 0 | X13: 9 | Y13: 0 | Z13: 1 | AA13: 4 | AG13: 1.3 | AI13: =+AJ13+BU13 -> 1,299.69 | AJ13: =+AK13+BQ13+CD13 -> 1,255.52 | AK13: =AL13+AZ13+BH13 -> 1,107.58 | AL13: =SUM(AM13:AY13) -> 854.01 | AM13: 165.22 | AN13: 385.28 | AO13: 0.79 | AP13: 13.83 | AQ13: 0.28 | AR13: 84.81 | AW13: 99.81 | AX13: 24.13 | AY13: 79.85 | AZ13: =SUM(BA13:BG13) -> 226.10 | BA13: 113.02 | BB13: 45.21 | BC13: 30.58 | BD13: 31.08 | BE13: 1.69 | BF13: 4.52 | BH13: =SUM(BI13:BP13) -> 27.47 | BI13: 14.15 | BJ13: 0.80 | BK13: 3.00 | BL13: 2.15 | BM13: 2.69 | BN13: 1.62 | BO13: 0.82 | BP13: 2.23 | BQ13: =SUM(BR13:BT13) -> 20.25 | BR13: 19.13 | BS13: 1.13 | BU13: =SUM(BV13:CC13) -> 44.17 | BV13: 0.00 | BW13: 0.00 | BX13: 7.20 | BY13: 16.71 | BZ13: 9.00 | CA13: 5.63 | CB13: 5.63 | CD13: =+CE13+CH13+CI13+CJ13+CK13 -> 127.69 | CE13: =+CF13+CG13 -> 1.80 | CF13: 1.53 | CG13: 0.27 | CH13: =+Q13*AG13 -> 81.90 | CI13: 34.69 | CJ13: 3.00 | CK13: =Q13*0.1 -> 6.30 | CL13: 100.00 | CM13: 100.00
